Cogmind - Beta 14 @@@ ROGUE MODE // 2024.10.17 @ 21:51:23 Player: Komeiji O. Result: Destroyed by AG-55740 with Assembled Focal Cannon Performance ------------- Evolutions (1) 500 Regions Visited (6) 1200 Robots Destroyed (30) 150 Value Destroyed (527) 527 Prototype IDs (15) 300 Alien Tech Used (0) 0 Bonus (2065) 2065 TOTAL SCORE: 4742 Bonus ------- Follower Combat Kills 465 Met Imprinter 300 Was Imprinted 300 Destroyed Z-Imprinter 1000 Cogmind --------- Core Integrity 0/400 Matter 300/300 Energy 100/100 System Corruption 0% Temperature Cool (12) Movement Rolling (130) Ox2 Location -7/Deep Caves Parts ------- > --- POWER (1) -------- (None) > --- PROPULSION (2) --- Compact Wheel > --- UTILITY (3) ------ Experimental Heat Sink High-capacity Storage Unit > --- WEAPON (3) ------- (None) > --- INVENTORY (20) --- Zionite Light DM Reactor Zionite Light DM Reactor Zionite Light DM Reactor Compact Wheel Zionite Glidesys I Zionite Glidesys I Zionite Glidesys I Zionite Glidesys I Zionite Glidesys I Zionite Glidesys II Cooling System Coolant Injector Small Storage Unit Zionite Biocell (600) Experimental Sensor Array ECM Suite Improved Reaction Control System Light Armor Plating Makeshift Hacking Suite Improved EM Pulse Cannon Peak State ------------ > --- POWER ------------ Zionite Light DM Reactor > --- PROPULSION ------- Compact Wheel Compact Wheel > --- UTILITY ---------- Experimental Heat Sink High-capacity Storage Unit Zionite Light Carapace > --- WEAPON ----------- Zionite Laser-S Zionite Phaser-S Zionite Phaser-S > --- INVENTORY -------- Zionite Light DM Reactor Zionite Light DM Reactor Zionite Light DM Reactor Compact Wheel Zionite Glidesys I Zionite Glidesys I Zionite Glidesys I Zionite Glidesys I Zionite Glidesys I Zionite Glidesys II Cooling System Coolant Injector Small Storage Unit Zionite Biocell Experimental Sensor Array ECM Suite Improved Reaction Control System Light Armor Plating Makeshift Hacking Suite Improved EM Pulse Cannon [Rating: 54] Favorites ----------- Power Deuterium Engine Engine Deuterium Engine Power Core Light Nuclear Core Reactor Zionite Light DM Reactor Propulsion Compact Wheel Wheel Compact Wheel Hover Unit Zionite Glidesys II Utility High-capacity Storage Unit Device Seismic Detector Storage High-capacity Storage Unit Protection Light Armor Plating Weapon Light Assault Rifle Energy Gun Medium Laser Ballistic Gun Light Assault Rifle Ballistic Cannon Light Cannon Launcher Grenade Launcher Slashing Weapon Mining Claw Build | -11 -10 -10 -9 -9 -7 -7 ------- Run | Yrd Mat Min Mat Min Zio Dee Slots Evolved 2 | . . . 2 . . . Power . | . . . . . . . Propulsion . | . . . . . . . Utility 1 | . . . 1 . . . Weapon 1 | . . . 1 . . . Parts Attached 71 | 8 15 6 7 5 4 26 Power 9 | 1 3 3 . . . 2 Engine 5 | 1 2 2 . . . . Core 2 | . 1 1 . . . . Reactor 2 | . . . . . . 2 Propulsion 11 | 2 4 . 1 . . 4 Treads . | . . . . . . . Leg . | . . . . . . . Wheel 9 | 2 4 . 1 . . 2 Hover 2 | . . . . . . 2 Flight . | . . . . . . . Utility 27 | 3 1 1 2 1 2 17 Device 16 | 2 . 1 . 1 2 10 Storage 4 | 1 1 . 1 . . 1 Processor . | . . . . . . . Hackware . | . . . . . . . Protection 7 | . . . 1 . . 6 Artifact . | . . . . . . . Weapon 24 | 2 7 2 4 4 2 3 Energy Gun 8 | . 5 . . . . 3 Energy Cannon . | . . . . . . . Ballistic Gun 10 | 2 1 2 2 2 1 . Ballistic Cannon 1 | . . . . 1 . . Launcher 3 | . . . 2 1 . . Special Weapon . | . . . . . . . Impact Weapon . | . . . . . . . Slashing Weapon 2 | . 1 . . . 1 . Piercing Weapon . | . . . . . . . Special Melee Weapon . | . . . . . . . Unidentified Prototypes 11 | . . . . . 1 10 Corrupted Parts 2 | . . 2 . . . . System Corruption 10 | . . 10 . . . . Parts Lost 17 | . 6 1 2 . . 8 Power 3 | . 1 1 . . . 1 Propulsion 4 | . 2 . 1 . . 1 Utility 2 | . . . . . . 2 Weapon 8 | . 3 . 1 . . 4 Highest Loss Streak 4 | . 3 1 2 . . 4 To Critical Strikes . | . . . . . . . Average Slot Usage (%) 96 | . 98 99 93 100 100 90 Engine 8 | . 12 13 11 11 11 2 Reactor 2 | . . . . . . 8 Wheel 23 | . 27 28 17 22 22 21 Device 11 | . 14 14 11 11 11 10 Storage 11 | . 14 14 11 11 11 11 Protection 6 | . . . 11 11 11 9 Energy Gun 7 | . 16 13 . . . 8 Ballistic Gun 15 | . 10 14 26 23 17 12 Launcher 5 | . . . 3 9 11 5 Slashing Weapon 1 | . . . . . 4 . Peak Build Rating 54 | 9 10 15 17 17 24 54 Average Rating 18 | 6 7 9 16 16 16 34 On Entrance 11 | . 8 8 15 17 16 17 Naked Turns . | . . . . . . . Heaviest Build 68 | 13 29 34 60 60 60 68 Greatest Support 32 | 26 32 32 32 32 32 32 Greatest Overweight (x) 4 | 1 1 1 3 1 1 4 Average Overweight (x) 1 | . . . 1 1 1 2 Largest Inventory Capacity 20 | 8 15 15 20 20 20 20 Average Capacity 17 | 7 11 15 15 20 20 20 Most Carried 20 | 8 13 15 15 15 20 20 Average Carried 15 | 4 8 14 14 14 18 19 Final Capacity 20 | 8 15 15 20 20 20 20 Final Carried 20 | 8 13 15 14 15 20 20 Class Distribution -------------------- 51% | Mutant 48% | Tank Dominant Class ---------------- Mutant | -10/Materials Mutant | -10/Mines Tank | -9/Materials Tank | -9/Mines Tank | -7/Zion Tank | -7/Deep Caves Resources | -11 -10 -10 -9 -9 -7 -7 ----------- Run | Yrd Mat Min Mat Min Zio Dee Matter Collected 1127 | 302 149 35 79 167 30 365 Remotely . | . . . . . . . Salvage Created 781 | 110 375 52 113 25 . 106 Parts 63 | 9 27 6 12 4 . 5 Haulers Intercepted . | . . . . . . . Recyclers Shooed . | . . . . . . . Parts Field Recycled . | . . . . . . . Retrieved Matter . | . . . . . . . Parts Self-Destructed . | . . . . . . . Prevented . | . . . . . . . Kills | -11 -10 -10 -9 -9 -7 -7 ------- Run | Yrd Mat Min Mat Min Zio Dee Combat Hostiles Destroyed 28 | . 13 3 6 3 . 3 Melee 1 | . 1 . . . . . Guns 22 | . 12 3 3 1 . 3 AOE 5 | . . . 3 2 . . Classes Destroyed 6 | 2 2 . 1 . . 1 Worker 1 | . . . 1 . . . Tunneler 2 | 2 . . . . . . Recycler 1 | 1 . . . . . . Swarmer 16 | . 6 3 4 3 . . Grunt 9 | . 7 . 2 . . . Assembled 2 | . . . . . . 2 Best Kill Streak 4 | 2 3 3 4 3 . 2 Combat Bots Only 4 | . 3 3 4 3 . 2 Max Kills in Single Turn 3 | 1 1 2 3 2 . 1 Gunslinging 1 | . . 1 . . . . Exploded 3 | . . . 3 1 . . Melee 1 | . 1 . . . . . Uniques/NPCs Destroyed 1 | . . . . . . 1 Z-Imprinter (-7/Deep Caves) Combat | -11 -10 -10 -9 -9 -7 -7 -------- Run | Yrd Mat Min Mat Min Zio Dee Hostile Shots Fired 188 | . 99 15 24 4 . 46 Missed 50 | . 24 5 10 1 . 10 Damage Taken 2309 | . 730 130 206 52 . 1191 Core 668 | . 187 33 23 24 . 401 Absorbed by Shields . | . . . . . . . Regen/Repaired (Parts) 178 | . . . . . 178 . Core Remaining (%) 56 | 100 . 12 . . . . Volleys Fired 92 | 11 46 5 6 2 . 22 Largest 3 | 2 2 2 3 3 . 3 Hottest 180 | 40 100 70 75 75 . 180 Shots Fired 195 | 22 85 10 18 6 . 54 Gun 186 | 22 85 10 14 4 . 51 Cannon . | . . . . . . . Launcher 9 | . . . 4 2 . 3 Special . | . . . . . . . Kinetic 94 | 22 19 5 14 4 . 30 Thermal 78 | . 66 5 . . . 7 Explosive 9 | . . . 4 2 . 3 Electromagnetic . | . . . . . . . Phasic 14 | . . . . . . 14 Robot Hit Streak 7 | 6 7 3 4 1 . 3 Robot Miss Streak 4 | 2 3 2 3 2 . 4 Penetration Max . | . . . . . . . Secondary Targets 3 | . 1 1 . . . 1 Max Gunslinging Chain 1 | . 1 1 . . . 1 Shots Hit Robots 105 | 13 54 6 6 2 . 24 Core Hits 59 | 6 25 3 9 4 . 12 Critical Kills . | . . . . . . . Critical Parts Destroyed . | . . . . . . . Critical Strikes 6 | . 6 . . . . . Burn 6 | . 6 . . . . . Melee Attacks 4 | . 3 . . . 1 . Impact . | . . . . . . . Slashing 4 | . 3 . . . 1 . Piercing . | . . . . . . . Sneak Attacks . | . . . . . . . Combat Hostiles . | . . . . . . . Follow-up Attacks . | . . . . . . . Damage Inflicted 1744 | 116 661 64 242 110 . 551 Guns 1339 | 116 588 64 85 24 . 462 Cannons . | . . . . . . . Explosions 332 | . . . 157 86 . 89 Melee 73 | . 73 . . . . . Ramming . | . . . . . . . Kinetic 583 | 116 119 26 85 24 . 213 Thermal 558 | . 469 38 . . . 51 Explosive 332 | . . . 157 86 . 89 Electromagnetic . | . . . . . . . Impact . | . . . . . . . Slashing 73 | . 73 . . . . . Piercing . | . . . . . . . Phasic 198 | . . . . . . 198 Highest Corruption 10 | . . 10 . . . . Average Corruption 9 | . . 9 . . . . Corruption Purged . | . . . . . . . Corruption Blocked . | . . . . . . . Overload Shots . | . . . . . . . Overflow Damage . | . . . . . . . Projectiles . | . . . . . . . Explosions . | . . . . . . . Melee . | . . . . . . . Knockbacks . | . . . . . . . Impact . | . . . . . . . Kinetic . | . . . . . . . Secondary . | . . . . . . . Self-Inflicted Damage 31 | . . . . 31 . . Shots 1 | . . . . 1 . . Rammed . | . . . . . . . Targets Rammed . | . . . . . . . Kicked . | . . . . . . . Crushed . | . . . . . . . Highest Temperature 278 | . 240 90 59 53 . 278 Average Temperature 80 | . 75 44 23 29 . 99 Received Heat Transfer 483 | . 219 . 24 . . 240 Effects 5 | . 3 . . . . 2 Interference 5 | . 3 . . . . 2 Siege Activations . | . . . . . . . Robots Corrupted . | . . . . . . . Combat Hostiles . | . . . . . . . Parts Fried . | . . . . . . . Impact Corruptions . | . . . . . . . Robots Melted . | . . . . . . . Combat Hostiles . | . . . . . . . Parts Melted 4 | . 4 . . . . . Heat Transferred 2035 | . 1850 111 . . . 74 Parts Sabotaged . | . . . . . . . Parts Stolen . | . . . . . . . Parts Stripped . | . . . . . . . Power Chain Reactions . | . . . . . . . Alert | -11 -10 -10 -9 -9 -7 -7 ------- Run | Yrd Mat Min Mat Min Zio Dee Peak Influence 323 | 15 323 96 213 165 . . Initial 82 | . 9 18 33 82 . . Average 110 | 6 160 41 115 164 . . Maximum Alert Level 1 | . 1 . 1 . . . Low Security (%) 82 | 100 62 100 75 100 . . Level 1 17 | . 37 . 25 . . . Level 2 . | . . . . . . . Level 3 . | . . . . . . . Level 4 . | . . . . . . . Level 5 . | . . . . . . . High Security . | . . . . . . . Max Security . | . . . . . . . Squads Dispatched 2 | . 1 . 1 . . . Investigation 1 | . . . 1 . . . Extermination . | . . . . . . . Reinforcement 1 | . 1 . . . . . Assault . | . . . . . . . Garrison . | . . . . . . . Intercept . | . . . . . . . Searches Triggered . | . . . . . . . Construction Impeded . | . . . . . . . Haulers Reinforced . | . . . . . . . Active Scanning Responses . | . . . . . . . Cargo Convoy Interrupts . | . . . . . . . Stealth | -11 -10 -10 -9 -9 -7 -7 --------- Run | Yrd Mat Min Mat Min Zio Dee Distress Signals 4 | . 2 . 2 . . . Communications Jammed . | . . . . . . . Distress Signals . | . . . . . . . Times Spotted 54 | . 21 3 11 2 . 17 Peak Tracking Total 7 | . 5 3 7 2 . 3 Tactical Retreats 1 | . 1 . . . . . Traps | -11 -10 -10 -9 -9 -7 -7 ------- Run | Yrd Mat Min Mat Min Zio Dee Traps Triggered 1 | . . 1 . . . . Indirectly . | . . . . . . . Trap Hack Attempts . | . . . . . . . Triggered . | . . . . . . . Disarmed . | . . . . . . . Reprogrammed . | . . . . . . . Reused . | . . . . . . . Traps Extracted . | . . . . . . . Installed . | . . . . . . . Triggered . | . . . . . . . Machines | -11 -10 -10 -9 -9 -7 -7 ---------- Run | Yrd Mat Min Mat Min Zio Dee Machines Disabled 3 | . . . . . . 3 Max in Single Turn 1 | . . . . . . 1 Machines Repaired . | . . . . . . . Machines Dismantled . | . . . . . . . Machines Sabotaged . | . . . . . . . Overloaded Fab Kills . | . . . . . . . Hacking | -11 -10 -10 -9 -9 -7 -7 --------- Run | Yrd Mat Min Mat Min Zio Dee Machines Accessed 8 | . 4 1 3 . . . Terminals 6 | . 4 . 2 . . . Fabricators . | . . . . . . . Repair Stations . | . . . . . . . Recycling Units . | . . . . . . . Scanalyzers 1 | . . . 1 . . . Garrison Access . | . . . . . . . Total Hacks 27 | . 17 1 9 . . . Successful 14 | . 9 1 4 . . . Failed 13 | . 8 . 5 . . . Catastrophic 2 | . 1 . 1 . . . Database Lockouts . | . . . . . . . Manual 19 | . 9 . 6 . 4 . Terminals 24 | . 17 . 7 . . . Fabricators . | . . . . . . . Repair Stations . | . . . . . . . Recycling Units . | . . . . . . . Scanalyzers 2 | . . . 2 . . . Garrison Access . | . . . . . . . Terminal Hacks 8 | . 7 1 . . . . Prototype ID Bank 3 | . 3 . . . . . Open Door 1 | . . 1 . . . . Level Access Points 1 | . 1 . . . . . Alert Level 1 | . 1 . . . . . Unreport Threat 1 | . 1 . . . . . Registered Components 1 | . 1 . . . . . Fabricator Hacks . | . . . . . . . Repair Station Hacks . | . . . . . . . Recycling Unit Hacks . | . . . . . . . Scanalyzer 2 | . . . 2 . . . Insert Component 1 | . . . 1 . . . Analyze 1 | . . . 1 . . . Garrison Access Hacks . | . . . . . . . Unauthorized Hacks 4 | . 2 . 2 . . . Terminals 4 | . 2 . 2 . . . Assimilate 1 | . . . 1 . . . Botnet 3 | . 2 . 1 . . . Fabricators . | . . . . . . . Repair Stations . | . . . . . . . Recycling Units . | . . . . . . . Scanalyzers . | . . . . . . . Garrison Access . | . . . . . . . Data Cores Recovered . | . . . . . . . Used . | . . . . . . . Hacking Detections 6 | . 3 . 3 . . . Full Trace Events 1 | . . . 1 . . . Feedback Events . | . . . . . . . Feedback Blocked . | . . . . . . . Robot Schematics Acquired 4 | . . . . . 4 . Robots Built . | . . . . . . . Authchips . | . . . . . . . Time . | . . . . . . . Total Robot Build Rating . | . . . . . . . Part Schematics Acquired 15 | . . . 1 . 14 . Parts Built . | . . . . . . . Authchips . | . . . . . . . Time . | . . . . . . . Total Part Build Rating . | . . . . . . . Parts Repaired . | . . . . . . . Time . | . . . . . . . Parts Recycled . | . . . . . . . Recycled Matter . | . . . . . . . Retrieved Matter . | . . . . . . . Retrieved Components . | . . . . . . . Parts Scanalyzed 1 | . . . 1 . . . Part Schematics Acquired 1 | . . . 1 . . . Parts Damaged . | . . . . . . . Bothacking | -11 -10 -10 -9 -9 -7 -7 ------------ Run | Yrd Mat Min Mat Min Zio Dee Used RIF Installer . | . . . . . . . Robots Hacked . | . . . . . . . Non-combat . | . . . . . . . Combat . | . . . . . . . Robot Hacks Applied . | . . . . . . . Relay Couplers Released . | . . . . . . . Fabnet Peak Effective % . | . . . . . . . Robots Rewired . | . . . . . . . Allies Hacked . | . . . . . . . Hacks Repelled . | . . . . . . . Allies | -11 -10 -10 -9 -9 -7 -7 -------- Run | Yrd Mat Min Mat Min Zio Dee Total Allies 12 | . . 2 1 . 8 1 Largest Group 8 | . . 2 3 . 8 5 Highest-Rated Group 265 | . . 53 63 . 265 234 Highest-Rated Ally 119 | . . 31 31 . 39 119 Total Orders . | . . . . . . . Ally Attacks 167 | . . . 13 . . 154 Total Damage 3215 | . . . 187 . . 3028 Kills 21 | . . . 2 . . 19 Allies Corrupted . | . . . . . . . Allies Melted 1 | . . . 1 . . . Intel | -11 -10 -10 -9 -9 -7 -7 ------- Run | Yrd Mat Min Mat Min Zio Dee Robot Analysis Total . | . . . . . . . Derelict Logs Recovered 3 | . . 1 . 1 1 . Drone Launches . | . . . . . . . Drone Recoveries . | . . . . . . . Exploration | -11 -10 -10 -9 -9 -7 -7 ------------- Run | Yrd Mat Min Mat Min Zio Dee Turns Passed 2851 | 133 505 342 200 200 655 816 Spaces Moved 2068 | 93 314 307 142 161 534 517 Core 2 | 2 . . . . . . Treads . | . . . . . . . Legs . | . . . . . . . Wheels 2066 | 91 314 307 142 161 534 517 Hover . | . . . . . . . Flight . | . . . . . . . Fastest Speed 50 | 50 80 100 115 115 115 115 Average Speed 113 | 91 93 100 120 115 115 134 Slowest Speed 160 | 100 100 115 145 115 115 160 Overloaded Moves . | . . . . . . . Propulsion Burnouts . | . . . . . . . Robots Hopped . | . . . . . . . Cave-ins Triggered . | . . . . . . . Exploration Rate (%) 48 | 4 45 88 17 32 72 78 Regions Visited 6 Branch Regions 4 Pre-discovered Areas 1 | . . . . . 1 . Known Exits Taken 1 | . . 1 . . . . Unknown Exits Taken 5 | 1 1 . 1 1 1 . Scrap Searched 3 | . . 1 . . 2 . Spaces Dug . | . . . . . . . Terrain Destroyed 40 | . . . 22 13 . 5 Melee . | . . . . . . . Projectile 1 | . . . . . . 1 AOE 39 | . . . 22 13 . 4 Terrain Rammed . | . . . . . . . Walls Destroyed . | . . . . . . . Machines Disabled . | . . . . . . . Actions | -11 -10 -10 -9 -9 -7 -7 --------- Run | Yrd Mat Min Mat Min Zio Dee Total 2380 | 121 436 330 160 170 571 592 Wait 78 | . 42 8 . . 28 . Move 2062 | 92 313 306 141 160 533 517 Hop . | . . . . . . . Pick Up 42 | 9 11 2 4 . 5 11 Fast Attach 14 | 7 1 2 . . . 4 Attach 11 | . 5 . 4 1 . 1 Detach 1 | . . . . 1 . . Swap 46 | 1 9 4 3 4 4 21 Drop 28 | 1 6 3 2 . . 16 Fire 92 | 11 46 5 6 2 . 22 Melee 4 | . 3 . . . 1 . Ram . | . . . . . . . Kick . | . . . . . . . Crush . | . . . . . . . Escape Stasis . | . . . . . . . Rewire 2 | . . . . 2 . . Trap . | . . . . . . . Miscellaneous . | . . . . . . . Route ------- -11/Scrapyard -10/Materials (discovered 4 exits: *Mat x3 / *Min) -10/Mines -9/Materials -9/Mines (discovered 2 exits: [*Mat] / *Zio) -7/Zion -7/Deep Caves History --------- Turn | Location | Event 17 | -11/Scrapyard | Discovered new exit (range 16) 134 | -11/Scrapyard | Entered Materials 149 | -10/Materials | Identified exit to Materials 302 | -10/Materials | Build established: Mutant 350 | -10/Materials | Lost 3 parts (1p1n1w) 352 | -10/Materials | Core integrity fell below 50% 569 | -10/Materials | Discovered new exit (range 7) 639 | -10/Materials | Entered Mines 684 | -10/Mines | Found a damaged Exp. Sensor Array with a note attached 686 | -10/Mines | Found Prototype Device 876 | -10/Mines | Core integrity fell below 20% 938 | -10/Mines | Discovered exit to Materials (range 8) 952 | -10/Mines | Met a Derelict who couldn't figure out how to use a Trap Extractor 968 | -10/Mines | System corruption reached 10% 981 | -10/Mines | Entered Materials 981 | -9/Materials | Accompanied by 2 allies 981 | -9/Materials | Evolved 2 slots: Utility x1, Weapon x1 986 | -9/Materials | Led the pair of lost Derelicts to an unsafe place 1060 | -9/Materials | Discovered new exit (range 13) 1181 | -9/Materials | Entered Mines 1182 | -9/Mines | Assembled infested the area 1229 | -9/Mines | Learned Materials emergency access door positions 1302 | -9/Mines | Discovered new exit (range 5) 1332 | -9/Mines | A Derelict revealed a hidden shortcut to a safe place 1381 | -9/Mines | Entered Zion 1436 | -7/Zion | Build established: Tank 1489 | -7/Zion | Visited the Megawrench Repair Shop 1489 | -7/Zion | Megawrench repaired 6 parts 1489 | -7/Zion | Identified Exp. Sensor Array 1615 | -7/Zion | Learned location of Recycling (-7) 1616 | -7/Zion | Learned Factory emergency access door positions 1814 | -7/Zion | Met Imprinter 1831 | -7/Zion | Imprinted 1833 | -7/Zion | Declared Zion's savior 1888 | -7/Zion | Gained Derelict followers 1930 | -7/Zion | Acquired unknown access codes intercepted by a Zionite 1983 | -7/Zion | Opened final containment barrier to the Deep Caves 1999 | -7/Zion | Discovered new exit (range 5) 2002 | -7/Zion | Saw the warning signs outside the Deep Caves entrance 2036 | -7/Zion | Entered Deep Caves 2036 | -7/Deep Caves | Accompanied by 8 allies 2038 | -7/Deep Caves | Met 5H-AD0 2153 | -7/Deep Caves | Z-Facility disabled 2178 | -7/Deep Caves | Attacked by Z-Imprinter 2187 | -7/Deep Caves | Destroyed Z-Imprinter 2221 | -7/Deep Caves | Found Prototype Protection 2221 | -7/Deep Caves | Identified Zio. Weapon Casing 2463 | -7/Deep Caves | Found Prototype Protection 2463 | -7/Deep Caves | Identified Zio. Heavy Carapace 2704 | -7/Deep Caves | Spotted AG-55740 2718 | -7/Deep Caves | Core integrity fell below 50% 2751 | -7/Deep Caves | Lost 4 parts (1u3w) 2817 | -7/Deep Caves | Core integrity fell below 20% 2852 | -7/Deep Caves | Destroyed by AG-55740 with Assembled Focal Cannon Last Messages --------------- 02662_ HV Slug penetrates as-53082. 02663_ as-53082 destroyed. 02663_ Switching to secondary target: as-83002. 02665_ RD-RF9(s) destroyed. 02666_ HV Slug penetrates as-83002. 02666_ as-83002 destroyed. 02668_ as-34270 suffers critical hit (Burn). 02669_ HV Slug penetrates as-34270. 02669_ HV Slug penetrates Machine. 02670_ as-34270 destroyed. 02705_ AG-55740: "DSI9AT1D G8OHIBQ29FWG 26R186 QD12WHW8W33 TDK1 81FTS" 02707_ HV Slug penetrates AG-55740. 02712_ 5H-AD0: "Argh..." 02712_ 5H-AD0 suddenly disappears in plain sight. 02714_ Zio. Laser-S destroyed. 02714_ Zio. Phaser-S destroyed. 02714_ Zio. Light Carapace destroyed. 02720_ Zio. Phaser-S destroyed. 02816_ Com. Wheel destroyed. 02852_ Zio. Light DM Reactor destroyed. Map ----- +----------------------------------------------------+ | ??????## ##?#### ##????? #????????????# ## | | ?????## #?# ##???? ????????????## ## | | ####?# #?# #???# #??????????### | | ### #?# #??# #??????????# | | ### #??? #??????????# | | ## ###?## #??????????## | | ## ##??## ?????????????### | | ## #### #??## #????????????????## | | ?# #??# #### ##?## #?????????????????# | | ?# #??# #??# ##??# ###????????????#### | | ## ##??# #??# ##### ##??????????## # | | # ##???# #??# ########???# | | #???? #??# #???#[[# | | #???? ??#### ###### #???##### | | ##??? ?????# #????# ###### #??????## | | ##???? ###### #???## ##?????????????# | | #???? #??## G ##??????????????## | | #????##### ### ###?????????????#### | | #????????? ???# ##??????????????## # | | #????????? #???## #???????????????# | | #####?????"#????### #??????#????????# | | #?????????????## ##??? #????????# | | #??????????????### ### ##???????## | | ### #????????????????## #????????### | | ??# #????????????????#; #????????# | | ??# #?????????????????# @ ### #????????## | | #?# #???????????????## ##??? #??????# | | ### ##??????????????# #?????# ######???##### | | #?????????????# #???????#???????## ## | | #????##???????## #???????????????# ## | | " ##???# ???????## ##???####????????# # | | #???? ????????# #????# #???????## | | #??? ?????????# #???## ######### | | % ##?? #?????????# #??## | | ## #?????????# #??# | | # ########### #??# | | ### #??# ########### | | % ### #?## ##?????????# | | ########### ## ### #??????????### | | %[ ##???????### ###### #??# | | =%"########## #?## | | ###### #??# | | #????## ##??# | | # ############ ##?????## #####???## | | #####??????????## ##????????########????????# | | ????????????????####?????????????????????????## # | | ??????????????????????????????????????????????###? | | | | | | | +----------------------------------------------------+ Best States ------------- Heat Dissipation 54 Energy Generation 27 Energy Capacity 275 Matter Stores 300 Matter Capacity 300 Sight Range 16 Robot Scan Range 20 Terrain Scan Range 16 Terrain Scan Density 10 Armor Coverage 400 Phase Shifting 15 Evasion (%) 55 Item Schematics ----------------- Sml. Storage Unit | -9/Materials | Scanalyzed Hvy. Missile Launcher | -7/Zion | Archive Imp. System Restoration Module | -7/Zion | Archive Med. Treads | -7/Zion | Archive Lrn. Missile Launcher | -7/Zion | Archive Adv. Assault Cannon | -7/Zion | Archive Falx | -7/Zion | Archive Imp. Melee Analysis Suite | -7/Zion | Archive Imp. Component Analysis Suite | -7/Zion | Archive Remote Force Field | -7/Zion | Archive Proton Missile Launcher | -7/Zion | Archive Thermic Laser | -7/Zion | Archive Hvy. Machine Gun | -7/Zion | Archive Spear | -7/Zion | Archive Focal Shield | -7/Zion | Archive Robot Schematics ------------------ B-48 Gladiator | -7/Zion | Archive O-24 Administrator | -7/Zion | Archive K-01 Serf | -7/Zion | Archive G-73 Enforcer | -7/Zion | Archive Fabricated ------------ Nothing Alien Tech Used ----------------- None Achievements -------------- Are We The Baddies? Signs Are For Wimps Challenges ------------ None Game ------ Seed ScrapDeepScrap Manual? 0 Play Time 00:37:44 Cumulative 89.4 hours Start 2024.10.17 @ 21:14:20 End 2024.10.17 @ 21:51:23 Sessions 1 Manual Loads 0 Difficulty Rogue Special Mode None Game No. 32 Rogue 31 Adventurer 1 Explorer 0 Win Type - Total 1 Types 1/0/0/0/0/0/0/0/0 Lore% 24 Gallery% 46 Achievement% 39 Wizard Run 0 Options --------- Layout 0 ASCII 0 Keyboard 1 Movement Vi Keybinds 0 Fullscreen 2 Font 36/Terminus++ Map View 76x50 Zoom Use 0% Tactical HUD 1 Map Filters NONE Filters NONE Steam 1 RUN: d0a6f2cb-a7dc-4995-806b-9947054f94f9